fUSD/lending_fUSD_20260523
["ID","MTS","AMOUNT","RATE_DAILY","PERIOD"]
[422820552,1779468632000,-150.0,0.00013053,2]
[422820605,1779468632000,-938.55,0.00013562,2]
[422820561,1779468632000,-150.0,0.00013214,2]
[422820553,1779468632000,-200.0,0.00013064,2]
[422820560,1779468632000,-162.266847,0.00013193,2]
[422820558,1779468632000,-150.0,0.00013179,2]
[422820557,1779468632000,-150.0,0.00013174,2]
[422820554,1779468632000,-150.0,0.00013075,2]
[422820559,1779468632000,-255.0,0.00013187,2]
[422820556,1779468632000,-150.0,0.00013144,2]
[422820550,1779468632000,-150.0,0.00013005,2]
[422820563,1779468632000,-150.0,0.00013223,2]
[422820555,1779468632000,-150.0,0.0001311,2]
[422820567,1779468632000,-150.0,0.00013283,2]
[422820562,1779468632000,-150.0,0.00013223,2]
[422820564,1779468632000,-150.0,0.00013223,2]
[422820566,1779468632000,-150.0,0.00013249,2]
[422820565,1779468632000,-150.0,0.00013223,2]
[422820574,1779468632000,-150.0,0.00013392,2]
[422820573,1779468632000,-2000.0,0.00013391,2]
[422820568,1779468632000,-209.172108,0.00013291,2]
[422820572,1779468632000,-150.0,0.00013388,2]
[422820571,1779468632000,-150.0,0.00013368,2]
[422820575,1779468632000,-150.0,0.00013423,2]
[422820614,1779468638000,-221.80132365,0.00013542,2]
[422820615,1779468638000,-114.87605349,0.00013562,2]
[422820613,1779468638000,-12.12948087,0.00013542,2]
[422820612,1779468638000,-200.0,0.00013007,2]
[422820611,1779468638000,-428.27,0.00011699,2]
[422820664,1779468643000,-804.85704239,0.00013562,2]
[422820660,1779468643000,-3642.70196642,0.00013562,2]
[422820661,1779468643000,-863.77691128,0.00013562,2]
[422820663,1779468643000,-16164.87187273,0.00013562,2]
[422820668,1779468643000,-1158.0,0.00013562,2]
[422820665,1779468643000,-3946.91100525,0.00013562,2]
[422820667,1779468643000,-1563.56,0.00013562,2]
[422820666,1779468643000,-4.62483693,0.00013562,2]
[422820662,1779468643000,-1529.25319393,0.00013562,2]
[422820678,1779468646000,-2501.3232,0.00013562,2]
[422820676,1779468646000,-510518.17706537,0.00013562,2]
[422820677,1779468646000,-406886.16825949,0.00013562,2]
[422820675,1779468646000,-517607.57147194,0.00013562,2]
[422820680,1779468647000,-14009.14299825,0.00013562,2]
[422820679,1779468647000,-10839.0951405,0.00013562,2]
[422820688,1779469391000,156.22,6.157e-05,2]
[422820732,1779469832000,-215.27762834,0.00012242,2]
[422820731,1779469832000,-208.7374384,0.00012242,2]
[422820716,1779469832000,-455.88518175,0.00012103,2]
[422820737,1779469832000,-559.2,0.00012405,2]
[422820720,1779469832000,-33124.6777,0.00012105,2]
[422820718,1779469832000,-744.11481825,0.00012103,2]
[422820705,1779469832000,-2218.52,0.00011772,2]
[422820729,1779469832000,-2000.0,0.00012206,2]
[422820714,1779469832000,-1755.41,0.00012101,2]
[422820710,1779469832000,-156.22,0.00012072,2]
[422820703,1779469832000,-362.73,0.00011562,2]
[422820707,1779469832000,-1010.43,0.00012019,2]
[422820701,1779469832000,-500.0,0.00011562,2]
[422820699,1779469832000,-150.0,0.00011504,2]
[422820734,1779469832000,-160.0,0.00012242,2]
[422820712,1779469832000,-155.66,0.00012081,2]
[422820722,1779469832000,-929.1,0.00012122,2]
[422820761,1779469832000,-221280.0884321,0.0001243,2]
[422820735,1779469832000,-241.7,0.00012276,2]
[422820725,1779469832000,-19999.99,0.00012122,2]
[422820763,1779469832000,-70986.84762641,0.0001243,2]
[422820762,1779469832000,-15791.60295966,0.0001243,2]
[422820751,1779469832000,-500.0,0.00012429,2]
[422820747,1779469832000,-355.34625441,0.00012429,2]
[422820749,1779469832000,-494.07652366,0.00012429,2]
[422820743,1779469832000,-500.0,0.00012429,2]
[422820745,1779469832000,-500.0,0.00012429,2]
[422820764,1779469832000,-159636.69801744,0.0001243,2]
[422820765,1779469832000,-260.99829995,0.0001243,2]
[422820759,1779469832000,-176.0,0.0001243,2]
[422820757,1779469832000,-595.57968293,0.00012429,2]
[422820755,1779469832000,-500.0,0.00012429,2]
[422820753,1779469832000,-565.38982319,0.00012429,2]
[422820740,1779469832000,-275.81599489,0.0001242,2]
[422820727,1779469832000,-298.52,0.00012198,2]
[422820741,1779469832000,-500.0,0.00012429,2]
[422820779,1779469838000,-500.0,0.00012429,2]
[422820788,1779469838000,-496.55942955,0.00012429,2]
[422820787,1779469838000,-500.0,0.00012429,2]
[422820790,1779469838000,-500.0,0.00012429,2]
[422820796,1779469838000,-500.0,0.00012429,2]
[422820791,1779469838000,-455.51422653,0.00012429,2]
[422820793,1779469838000,-500.0,0.00012429,2]
[422820797,1779469838000,-500.0,0.00012429,2]
[422820792,1779469838000,-500.0,0.00012429,2]
[422820798,1779469838000,-500.0,0.00012429,2]
[422820794,1779469838000,-500.0,0.00012429,2]
[422820785,1779469838000,-500.0,0.00012429,2]
[422820789,1779469838000,-500.0,0.00012429,2]
[422820786,1779469838000,-500.0,0.00012429,2]
[422820775,1779469838000,-500.0,0.00012429,2]
[422820782,1779469838000,-500.0,0.00012429,2]
[422820784,1779469838000,-500.0,0.00012429,2]
[422820781,1779469838000,-500.0,0.00012429,2]
[422820780,1779469838000,-500.0,0.00012429,2]
[422820777,1779469838000,-500.0,0.00012429,2]
[422820778,1779469838000,-500.0,0.00012429,2]
[422820776,1779469838000,-500.0,0.00012429,2]
[422820799,1779469838000,-500.0,0.00012429,2]
[422820774,1779469838000,-500.0,0.00012429,2]
[422820773,1779469838000,-500.0,0.00012429,2]
[422820772,1779469838000,-500.0,0.00012429,2]
[422820771,1779469838000,-500.0,0.00012429,2]
[422820769,1779469838000,-514.59925956,0.00012429,2]
[422820770,1779469838000,-500.0,0.00012429,2]
[422820783,1779469838000,-500.0,0.00012429,2]
[422820800,1779469838000,-500.0,0.00012429,2]
[422820795,1779469838000,-500.0,0.00012429,2]
[422820801,1779469838000,-500.0,0.00012429,2]
[422820836,1779469838000,-25745.52943346,0.0001243,2]
[422820833,1779469838000,-500.0,0.00012429,2]
[422820802,1779469838000,-500.0,0.00012429,2]
[422820834,1779469838000,-182.69552563,0.00012429,2]
[422820832,1779469838000,-500.0,0.00012429,2]
[422820831,1779469838000,-250.0,0.00012429,2]
[422820827,1779469838000,-500.0,0.00012429,2]
[422820828,1779469838000,-250.0,0.00012429,2]
[422820826,1779469838000,-3779.55,0.0001243,2]
[422820822,1779469838000,-500.0,0.00012429,2]
[422820821,1779469838000,-500.0,0.00012429,2]
[422820824,1779469838000,-500.0,0.00012429,2]
[422820820,1779469838000,-500.0,0.00012429,2]
[422820819,1779469838000,-500.0,0.00012429,2]
[422820823,1779469838000,-500.0,0.00012429,2]
[422820835,1779469838000,-500.0,0.00012429,2]
[422820816,1779469838000,-500.0,0.00012429,2]
[422820818,1779469838000,-500.0,0.00012429,2]
[422820805,1779469838000,-500.0,0.00012429,2]
[422820804,1779469838000,-500.0,0.00012429,2]
[422820803,1779469838000,-500.0,0.00012429,2]
[422820807,1779469838000,-500.0,0.00012429,2]
[422820809,1779469838000,-500.0,0.00012429,2]
[422820806,1779469838000,-500.0,0.00012429,2]
[422820808,1779469838000,-500.0,0.00012429,2]
[422820810,1779469838000,-500.0,0.00012429,2]
[422820812,1779469838000,-500.0,0.00012429,2]
[422820825,1779469838000,-11173.50663505,0.0001243,2]
[422820814,1779469838000,-500.0,0.00012429,2]
[422820811,1779469838000,-500.0,0.00012429,2]
[422820817,1779469838000,-500.0,0.00012429,2]
[422820864,1779469840000,-8128.0,0.00012807,2]
[422820855,1779469840000,-198.87449244,0.00012718,2]
[422820856,1779469840000,-5078.74965831,0.00012718,2]
[422820854,1779469840000,-16012.39006113,0.00012706,2]
[422820858,1779469840000,-8478.0,0.00012756,2]
[422820857,1779469840000,-17190.0,0.00012731,2]
[422820862,1779469840000,-176.0,0.00012806,2]
[422820859,1779469840000,-1889.79,0.00012757,2]
[422820852,1779469840000,-7550.0,0.00012681,2]
[422820861,1779469840000,-176.0,0.00012806,2]
[422820860,1779469840000,-17471.0,0.00012781,2]
[422820853,1779469840000,-13125.0,0.00012706,2]
[422820850,1779469840000,-9394.0,0.00012655,2]
[422820847,1779469840000,-10209.0,0.00012555,2]
[422820844,1779469840000,-150.0,0.00012504,2]
[422820845,1779469840000,-8795.0,0.00012505,2]
[422820851,1779469840000,-769.61,0.00012665,2]
[422820843,1779469840000,-151.83,0.0001249,2]
[422820846,1779469840000,-7391.0,0.0001253,2]
[422820849,1779469840000,-1158.0,0.0001263,2]
[422820841,1779469840000,-247.18375262,0.00012468,2]
[422820842,1779469840000,-906.0,0.0001248,2]
[422820840,1779469840000,-991345.17859593,0.0001243,2]
[422820839,1779469840000,-500.0,0.00012429,2]
[422820863,1779469840000,-177.01964066,0.00012806,2]
[422820848,1779469840000,-13749.0,0.0001258,2]
[422820865,1779469840000,-150.0,0.00012822,2]
[422820893,1779469840000,-16012.39006106,0.0001295,2]
[422820867,1779469840000,-150.0,0.00012822,2]
[422820866,1779469840000,-150.0,0.00012822,2]
[422820892,1779469840000,-150.0,0.00012943,2]
[422820891,1779469840000,-150.0,0.00012941,2]
[422820889,1779469840000,-199.399928,0.0001293,2]
[422820890,1779469840000,-247.18375262,0.0001293,2]
[422820886,1779469840000,-150.0,0.00012911,2]
[422820885,1779469840000,-150.0,0.00012906,2]
[422820880,1779469840000,-150.0,0.00012881,2]
[422820888,1779469840000,-150.0,0.00012921,2]
[422820884,1779469840000,-150.0,0.00012901,2]
[422820882,1779469840000,-150.0,0.00012883,2]
[422820883,1779469840000,-150.0,0.00012901,2]
[422820887,1779469840000,-150.0,0.00012913,2]
[422820878,1779469840000,-2464.0,0.00012857,2]
[422820868,1779469840000,-150.0,0.00012822,2]
[422820881,1779469840000,-500.0,0.00012882,2]
[422820870,1779469840000,-150.0,0.00012822,2]
[422820869,1779469840000,-150.0,0.00012822,2]
[422820872,1779469840000,-150.0,0.00012822,2]
[422820871,1779469840000,-150.0,0.00012822,2]
[422820874,1779469840000,-150.0,0.00012822,2]
[422820876,1779469840000,-150.0,0.00012842,2]
[422820875,1779469840000,-2314.0,0.00012832,2]
[422820877,1779469840000,-150.0,0.00012852,2]
[422820879,1779469840000,-150.0,0.00012861,2]
[422820873,1779469840000,-150.0,0.00012822,2]
[422820938,1779469841000,-150.0,0.00013139,2]
[422820941,1779469841000,-150.0,0.00013155,2]
[422820939,1779469841000,-150.0,0.00013139,2]
[422820945,1779469841000,-150.0,0.00013178,2]
[422820937,1779469841000,-150.0,0.00013125,2]
[422820929,1779469841000,-150.0,0.00013073,2]
[422820935,1779469841000,-150.0,0.00013099,2]
[422820934,1779469841000,-150.0,0.00013095,2]
[422820933,1779469841000,-150.0,0.00013089,2]
[422820932,1779469841000,-2500.0,0.00013087,2]
[422820943,1779469841000,-150.0,0.00013158,2]
[422820936,1779469841000,-150.0,0.00013119,2]
[422820944,1779469841000,-150.0,0.00013178,2]
[422820958,1779469841000,-150.0,0.00013237,2]
[422820940,1779469841000,-150.0,0.00013139,2]
[422820947,1779469841000,-150.0,0.00013186,2]
[422820946,1779469841000,-150.0,0.00013178,2]
[422820949,1779469841000,-180.566345,0.00013193,2]
[422820948,1779469841000,-151.0,0.00013193,2]
[422820950,1779469841000,-180.566345,0.00013193,2]
[422820951,1779469841000,-180.566345,0.00013193,2]
[422820956,1779469841000,-150.0,0.00013218,2]
[422820953,1779469841000,-150.0,0.00013198,2]
[422820952,1779469841000,-16012.39006106,0.00013194,2]
[422820955,1779469841000,-150.0,0.00013216,2]
[422820954,1779469841000,-150.0,0.0001321,2]
[422820928,1779469841000,-257.038969,0.00013067,2]
[422820942,1779469841000,-150.0,0.00013157,2]
[422820927,1779469841000,-231.587448,0.00013067,2]
[422820957,1779469841000,-150.0,0.00013218,2]
[422820922,1779469841000,-150.0,0.00013034,2]
[422820895,1779469841000,-2723.01133865,0.00012953,2]
[422820896,1779469841000,-150.0,0.0001296,2]
[422820899,1779469841000,-150.0,0.0001298,2]
[422820897,1779469841000,-150.0,0.00012973,2]
[422820894,1779469841000,-150.0,0.00012951,2]
[422820900,1779469841000,-150.0,0.0001298,2]
[422820898,1779469841000,-150.0,0.0001298,2]
[422820901,1779469841000,-150.0,0.0001299,2]
[422820902,1779469841000,-150.0,0.00013,2]
[422820903,1779469841000,-150.0,0.00013,2]
[422820906,1779469841000,-160.0,0.00013002,2]
[422820908,1779469841000,-1486.236597,0.00013002,2]
[422820907,1779469841000,-823.118298,0.00013002,2]
[422820925,1779469841000,-150.0,0.00013059,2]
[422820905,1779469841000,-179.655718,0.00013002,2]
[422820909,1779469841000,-160.0,0.00013002,2]
[422820912,1779469841000,-6059.0,0.00013016,2]
[422820916,1779469841000,-150.0,0.0001302,2]
[422820913,1779469841000,-418.0,0.00013016,2]
[422820910,1779469841000,-150.0,0.00013004,2]
[422820918,1779469841000,-3716.23979225,0.00013029,2]
[422820920,1779469841000,-4170.3749,0.0001303,2]
[422820921,1779469841000,-34068.5682,0.0001303,2]
[422820931,1779469841000,-150.0,0.00013081,2]
[422820930,1779469841000,-150.0,0.00013079,2]
[422820924,1779469841000,-150.0,0.00013059,2]
[422820926,1779469841000,-150.0,0.00013064,2]
[422820923,1779469841000,-150.0,0.0001304,2]
[422820911,1779469841000,-1224.0,0.00013016,2]
[422820960,1779469841000,-150.0,0.00013246,2]
[422820991,1779469841000,-150.0,0.00013398,2]
[422820962,1779469841000,-9386.71266292,0.00013267,2]
[422821021,1779469841000,-150.0,0.00013534,2]
[422820997,1779469841000,-150.0,0.00013416,2]
[422820992,1779469841000,-2315.0,0.000134,2]
[422820993,1779469841000,-163.0,0.000134,2]
[422820996,1779469841000,-150.0,0.00013409,2]
[422820999,1779469841000,-83615.4471777,0.0001343,2]
[422821000,1779469841000,-150.0,0.00013435,2]
[422821001,1779469841000,-180.566345,0.00013437,2]
[422821002,1779469841000,-180.566345,0.00013437,2]
[422821006,1779469841000,-9386.71266292,0.00013448,2]
[422821007,1779469841000,-150.0,0.00013455,2]
[422821004,1779469841000,-16012.39006106,0.00013437,2]
[422821010,1779469841000,-150.0,0.00013458,2]
[422821003,1779469841000,-180.566345,0.00013437,2]
[422821008,1779469841000,-150.0,0.00013455,2]
[422821009,1779469841000,-150.0,0.00013455,2]
[422821005,1779469841000,-150.0,0.00013445,2]
[422821011,1779469841000,-2000.0,0.00013462,2]
[422821013,1779469841000,-150.0,0.00013475,2]
[422821018,1779469841000,-150.0,0.00013514,2]
[422821014,1779469841000,-150.0,0.00013489,2]
[422821016,1779469841000,-150.0,0.00013495,2]
[422821012,1779469841000,-150.0,0.00013469,2]
[422821017,1779469841000,-4539.72490019,0.000135,2]
[422821015,1779469841000,-150.0,0.00013492,2]
[422821020,1779469841000,-222.86265103,0.00013528,2]
[422821019,1779469841000,-150.0,0.00013519,2]
[422820994,1779469841000,-970.0,0.000134,2]
[422820995,1779469841000,-6271.84480696,0.00013402,2]
[422820959,1779469841000,-150.0,0.00013241,2]
[422820989,1779469841000,-150.0,0.00013376,2]
[422820998,1779469841000,-150.0,0.00013428,2]
[422820961,1779469841000,-150.0,0.00013257,2]
[422820963,1779469841000,-713.93983826,0.00013267,2]
[422820972,1779469841000,-150.0,0.00013297,2]
[422820964,1779469841000,-4539.72490023,0.00013267,2]
[422820967,1779469841000,-150.0,0.00013277,2]
[422820969,1779469841000,-241.73459319,0.00013295,2]
[422820970,1779469841000,-150.0,0.00013297,2]
[422820966,1779469841000,-150.0,0.00013267,2]
[422820968,1779469841000,-150.0,0.00013277,2]
[422820971,1779469841000,-150.0,0.00013297,2]
[422820973,1779469841000,-168.73235425,0.000133,2]
[422820974,1779469841000,-150.0,0.00013307,2]
[422820976,1779469841000,-150.0,0.00013317,2]
[422820965,1779469841000,-5326.10386394,0.00013267,2]
[422820978,1779469841000,-150.0,0.00013336,2]
[422820977,1779469841000,-150.0,0.00013325,2]
[422820990,1779469841000,-150.0,0.00013396,2]
[422820987,1779469841000,-150.0,0.00013368,2]
[422820986,1779469841000,-566.0,0.00013362,5]
[422820982,1779469841000,-150.0,0.00013356,2]
[422820981,1779469841000,-150.0,0.0001334,2]
[422820983,1779469841000,-150.0,0.00013356,2]
[422820988,1779469841000,-150.0,0.00013376,2]
[422820980,1779469841000,-150.0,0.00013337,2]
[422820975,1779469841000,-1352.0,0.00013313,2]
[422820985,1779469841000,-151.0,0.00013359,2]
[422820979,1779469841000,-446.0,0.00013337,5]
[422820984,1779469841000,-151.0,0.00013359,2]
[422821059,1779469842000,-150.0,0.00013594,2]
[422821064,1779469842000,-150.0,0.00013613,2]
[422821061,1779469842000,-150.0,0.0001361,2]
[422821066,1779469842000,-151.0,0.00013628,2]
[422821065,1779469842000,-150.0,0.00013623,2]
[422821055,1779469842000,-150.0,0.00013574,2]
[422821058,1779469842000,-255.0,0.00013592,2]
[422821056,1779469842000,-150.0,0.00013576,2]
[422821067,1779469842000,-9386.71266292,0.0001363,2]
[422821057,1779469842000,-150.0,0.0001358,2]
[422821060,1779469842000,-150.0,0.00013599,2]
[422821063,1779469842000,-150.0,0.00013613,2]
[422821062,1779469842000,-150.0,0.00013613,2]
[422821092,1779469842000,-500.0,0.00013698,2]
[422821070,1779469842000,-151.0,0.00013639,2]
[422821078,1779469842000,-151.0,0.00013659,2]
[422821076,1779469842000,-151.0,0.00013659,2]
[422821077,1779469842000,-151.0,0.00013659,2]
[422821079,1779469842000,-150.0,0.0001366,2]
[422821069,1779469842000,-151.0,0.00013639,2]
[422821072,1779469842000,-5786.0,0.00013644,2]
[422821071,1779469842000,-150.0,0.0001364,2]
[422821080,1779469842000,-150.0,0.00013671,2]
[422821073,1779469842000,-1122.434043,0.00013652,2]
[422821074,1779469842000,-150.0,0.00013653,2]
[422821075,1779469842000,-883.996182,0.00013656,2]
[422821053,1779469842000,-151.0,0.00013562,2]
[422821068,1779469842000,-150.0,0.00013633,2]
[422821051,1779469842000,-151.0,0.00013559,2]
[422821041,1779469842000,-151.0,0.00013552,2]
[422821052,1779469842000,-151.0,0.00013562,2]
[422821082,1779469842000,-16012.39006106,0.00013681,2]
[422821023,1779469842000,-150.0,0.00013534,2]
[422821026,1779469842000,-150.0,0.00013549,2]
[422821022,1779469842000,-150.0,0.00013534,2]
[422821024,1779469842000,-150.0,0.00013534,2]
[422821027,1779469842000,-300.0,0.00013551,2]
[422821025,1779469842000,-150.0,0.00013534,2]
[422821028,1779469842000,-666.0,0.00013551,2]
[422821029,1779469842000,-234.8014557,0.00013552,2]
[422821030,1779469842000,-337445.3112775,0.00013552,2]
[422821032,1779469842000,-26946.9775344,0.00013552,2]
[422821031,1779469842000,-5597.9445843,0.00013552,2]
[422821035,1779469842000,-151.0,0.00013552,2]
[422821050,1779469842000,-150.0,0.00013554,2]
[422821034,1779469842000,-152.72799,0.00013552,2]
[422821037,1779469842000,-151.0,0.00013552,2]
[422821040,1779469842000,-151.0,0.00013552,2]
[422821036,1779469842000,-151.0,0.00013552,2]
[422821039,1779469842000,-151.0,0.00013552,2]
[422821042,1779469842000,-1034.5314672,0.00013552,2]
[422821044,1779469842000,-180.566345,0.00013552,2]
[422821043,1779469842000,-113278.3042498,0.00013552,2]
[422821054,1779469842000,-350.0,0.00013572,2]
[422821046,1779469842000,-180.566345,0.00013552,2]
[422821045,1779469842000,-180.566345,0.00013552,2]
[422821047,1779469842000,-180.566345,0.00013552,2]
[422821048,1779469842000,-180.566345,0.00013552,2]
[422821049,1779469842000,-180.566345,0.00013552,2]
[422821033,1779469842000,-6375.5047068,0.00013552,2]
[422821081,1779469842000,-150.0,0.00013673,2]
[422821038,1779469842000,-151.0,0.00013552,2]
[422821084,1779469842000,-150.0,0.00013693,2]
[422821119,1779469842000,-649.71,0.00013698,2]
[422821121,1779469842000,-649.71,0.00013698,2]
[422821133,1779469842000,-500.0,0.00013698,2]
[422821130,1779469842000,-649.71,0.00013698,2]
[422821122,1779469842000,-649.71,0.00013698,2]
[422821132,1779469842000,-649.71,0.00013698,2]
[422821131,1779469842000,-649.71,0.00013698,2]
[422821129,1779469842000,-649.71,0.00013698,2]
[422821126,1779469842000,-649.71,0.00013698,2]
[422821125,1779469842000,-649.71,0.00013698,2]
[422821128,1779469842000,-649.71,0.00013698,2]
[422821124,1779469842000,-649.71,0.00013698,2]
[422821147,1779469842000,-630.35,0.00013698,2]
[422821110,1779469842000,-781.3,0.00013698,2]
[422821127,1779469842000,-649.71,0.00013698,2]
[422821138,1779469842000,-500.0,0.00013698,2]
[422821146,1779469842000,-630.35,0.00013698,2]
[422821135,1779469842000,-500.0,0.00013698,2]
[422821139,1779469842000,-230.63278999,0.00013698,2]
[422821142,1779469842000,-630.35,0.00013698,2]
[422821136,1779469842000,-500.0,0.00013698,2]
[422821144,1779469842000,-630.35,0.00013698,2]
[422821145,1779469842000,-630.35,0.00013698,2]
[422821140,1779469842000,-630.35,0.00013698,2]
[422821137,1779469842000,-500.0,0.00013698,2]
[422821143,1779469842000,-630.35,0.00013698,2]
[422821148,1779469842000,-630.35,0.00013698,2]
[422821083,1779469842000,-150.0,0.00013693,2]
[422821134,1779469842000,-500.0,0.00013698,2]
[422821116,1779469842000,-781.3,0.00013698,2]
[422821141,1779469842000,-630.35,0.00013698,2]
[422821112,1779469842000,-781.3,0.00013698,2]
[422821117,1779469842000,-649.71,0.00013698,2]
[422821085,1779469842000,-500.0,0.00013698,2]
[422821086,1779469842000,-500.0,0.00013698,2]
[422821089,1779469842000,-266.37354223,0.00013698,2]
[422821093,1779469842000,-178.01754981,0.00013698,2]
[422821088,1779469842000,-500.0,0.00013698,2]
[422821087,1779469842000,-358.78278527,0.00013698,2]
[422821091,1779469842000,-500.0,0.00013698,2]
[422821095,1779469842000,-500.0,0.00013698,2]
[422821105,1779469842000,-336.59739595,0.00013698,2]
[422821094,1779469842000,-500.0,0.00013698,2]
[422821101,1779469842000,-500.0,0.00013698,2]
[422821097,1779469842000,-500.0,0.00013698,2]
[422821102,1779469842000,-500.0,0.00013698,2]
[422821090,1779469842000,-500.0,0.00013698,2]
[422821096,1779469842000,-500.0,0.00013698,2]
[422821099,1779469842000,-500.0,0.00013698,2]
[422821107,1779469842000,-781.3,0.00013698,2]
[422821111,1779469842000,-781.3,0.00013698,2]
[422821118,1779469842000,-649.71,0.00013698,2]
[422821109,1779469842000,-781.3,0.00013698,2]
[422821114,1779469842000,-781.3,0.00013698,2]
[422821106,1779469842000,-503.98623892,0.00013698,2]
[422821103,1779469842000,-500.0,0.00013698,2]
[422821108,1779469842000,-781.3,0.00013698,2]
[422821104,1779469842000,-500.0,0.00013698,2]
[422821100,1779469842000,-500.0,0.00013698,2]
[422821098,1779469842000,-500.0,0.00013698,2]
[422821113,1779469842000,-781.3,0.00013698,2]
[422821187,1779469843000,-500.0,0.00013698,2]
[422821175,1779469843000,-512.28,0.00013698,2]
[422821178,1779469843000,-500.0,0.00013698,2]
[422821182,1779469843000,-500.0,0.00013698,2]
[422821179,1779469843000,-500.0,0.00013698,2]
[422821177,1779469843000,-500.0,0.00013698,2]
[422821180,1779469843000,-500.0,0.00013698,2]
[422821181,1779469843000,-500.0,0.00013698,2]
[422821186,1779469843000,-454.50013012,0.00013698,2]
[422821197,1779469843000,-500.0,0.00013698,2]
[422821172,1779469843000,-512.28,0.00013698,2]
[422821192,1779469843000,-500.0,0.00013698,2]
[422821190,1779469843000,-500.0,0.00013698,2]
[422821188,1779469843000,-500.0,0.00013698,2]
[422821191,1779469843000,-500.0,0.00013698,2]
[422821193,1779469843000,-500.0,0.00013698,2]
[422821194,1779469843000,-500.0,0.00013698,2]
[422821195,1779469843000,-500.0,0.00013698,2]
[422821196,1779469843000,-500.0,0.00013698,2]
[422821199,1779469843000,-500.0,0.00013698,2]
[422821184,1779469843000,-500.0,0.00013698,2]
[422821198,1779469843000,-500.0,0.00013698,2]
[422821189,1779469843000,-500.0,0.00013698,2]
[422821185,1779469843000,-500.0,0.00013698,2]
[422821154,1779469843000,-500.0,0.00013698,2]
[422821183,1779469843000,-500.0,0.00013698,2]
[422821200,1779469843000,-500.0,0.00013698,2]
[422821150,1779469843000,-630.35,0.00013698,2]
[422821159,1779469843000,-630.35,0.00013698,2]
[422821149,1779469843000,-500.0,0.00013698,2]
[422821160,1779469843000,-500.0,0.00013698,2]
[422821158,1779469843000,-500.0,0.00013698,2]
[422821151,1779469843000,-500.0,0.00013698,2]
[422821156,1779469843000,-500.0,0.00013698,2]
[422821153,1779469843000,-630.35,0.00013698,2]
[422821157,1779469843000,-630.35,0.00013698,2]
[422821152,1779469843000,-500.0,0.00013698,2]
[422821155,1779469843000,-630.35,0.00013698,2]
[422821164,1779469843000,-512.28,0.00013698,2]
[422821161,1779469843000,-512.28,0.00013698,2]
[422821163,1779469843000,-512.28,0.00013698,2]
[422821165,1779469843000,-512.28,0.00013698,2]
[422821168,1779469843000,-512.28,0.00013698,2]
[422821167,1779469843000,-512.28,0.00013698,2]
[422821170,1779469843000,-512.28,0.00013698,2]
[422821171,1779469843000,-512.28,0.00013698,2]
[422821169,1779469843000,-512.28,0.00013698,2]
[422821166,1779469843000,-512.28,0.00013698,2]
[422821162,1779469843000,-512.28,0.00013698,2]
[422821173,1779469843000,-512.28,0.00013698,2]
[422821201,1779469843000,-284.8,0.00013698,2]
[422821202,1779469843000,-151.0,0.00013698,2]
[422821204,1779469843000,-500.0,0.00013698,2]